bitfinex-derivatives/quotes_BNBF0:USTF0_20250630
["timestamp","ask_amount","ask_price","bid_price","bid_amount"]
[1751276067657,1.33075628,654.04,653.46,1.14160755]
[1751276067957,1.33075628,654.03,653.46,1.14160755]
[1751276068157,1.33075628,654.02,653.46,1.14160755]
[1751276068357,1.33075628,654.01,653.46,1.14160755]
[1751276068557,1.33075628,654.0,653.46,1.14160755]
[1751276068753,1.33075628,653.99,653.46,1.14160755]
[1751276068954,1.33075628,653.98,653.46,1.14160755]
[1751276069156,1.33075628,653.97,653.46,1.14160755]
[1751276069357,1.33075628,653.96,653.46,1.14160755]
[1751276069551,1.33075628,653.95,653.46,1.14160755]
[1751276069755,1.33075628,653.94,653.46,1.14160755]
[1751276069953,1.33075628,653.93,653.46,1.14160755]
[1751276070157,1.33075628,653.92,653.46,1.14160755]
[1751276070356,1.33075628,653.91,653.46,1.14160755]
[1751276070558,1.33075628,653.9,653.46,1.14160755]
[1751276070758,1.33075628,653.89,653.46,1.14160755]
[1751276070958,1.33075628,653.88,653.46,1.14160755]
[1751276071158,1.33075628,653.87,653.46,1.14160755]
[1751276071356,1.33075628,653.86,653.46,1.14160755]
[1751276071559,1.33075628,653.85,653.46,1.14160755]
[1751276071766,1.33075628,653.84,653.46,1.14160755]
[1751276071957,1.33075628,653.83,653.45,1.14160755]
[1751276072157,1.5280173,654.18,653.45,1.14160755]
[1751276072361,1.33075772,654.17,653.45,1.14160755]
[1751276072563,1.33075772,654.16,653.45,1.14160755]
[1751276072862,1.33075772,654.15,653.45,1.14160755]
[1751276073056,1.33075772,654.14,653.45,1.14160755]
[1751276073259,1.33075772,654.13,653.45,1.14160755]
[1751276073458,1.33075772,654.12,653.45,1.14160755]
[1751276073659,1.33075772,654.11,653.45,1.14160755]
[1751276073858,1.33075772,654.1,653.45,1.14160755]
[1751276074062,1.5280173,654.18,653.45,1.14160755]
[1751276074063,1.33075772,654.09,653.45,1.14160755]
[1751276074362,1.33075772,654.08,653.45,1.14160755]
[1751276074558,1.33075772,654.07,653.45,1.14160755]
[1751276074862,1.33075772,654.06,653.45,1.14160755]
[1751276075161,1.33075772,654.05,653.45,1.14160755]
[1751276075360,1.33075772,654.04,653.45,1.14160755]
[1751276075557,1.33075772,654.03,653.45,1.14160755]
[1751276075861,1.33075772,654.02,653.46,1.14160755]
[1751276076161,1.33075772,654.01,653.46,1.14160755]
[1751276076461,1.33075772,654.0,653.46,1.14160755]
[1751276076658,1.5280173,654.16,653.46,1.14160755]
[1751276076659,1.33075772,653.99,653.46,1.14160755]
[1751276076858,1.33075772,653.98,653.47,1.14160755]
[1751276077060,1.33075772,653.97,653.47,1.14160755]
[1751276077356,1.33075772,653.96,653.47,1.14160755]
[1751276077558,1.33075772,653.95,653.47,1.14160755]
[1751276077762,1.33075772,653.94,653.47,1.14160755]
[1751276078061,1.33075772,653.93,653.47,1.14160755]
[1751276078262,1.33075772,653.92,653.47,1.14160755]
[1751276078462,1.33075772,653.91,653.47,1.14160755]
[1751276078662,1.33075772,653.9,653.47,1.14160755]
[1751276078959,1.33075772,653.89,653.47,1.14160755]
[1751276079159,1.33075772,653.88,653.47,1.14160755]
[1751276079359,1.33075772,653.87,653.47,1.14160755]
[1751276079559,1.33075772,653.86,653.47,1.14160755]
[1751276079764,1.33075772,653.85,653.47,1.14160755]
[1751276079964,1.33075772,653.84,653.48,1.14160755]
[1751276080162,1.5280173,654.15,653.48,1.14160755]
[1751276080163,1.33075772,653.83,653.48,1.14160755]
[1751276080461,1.33075772,653.82,653.48,1.14160755]
[1751276080662,1.5280173,654.14,653.48,1.14160755]
[1751276080864,1.33081133,654.13,653.48,1.14160755]
[1751276081065,2.85882863,654.13,653.49,1.14160755]
[1751276081268,1.33081133,654.12,653.49,1.14160755]
[1751276081468,2.85882863,654.11,653.5,1.14160755]
[1751276081662,1.33081133,654.1,653.5,1.14160755]
[1751276081962,1.5280173,654.08,653.53,1.14160755]
[1751276082168,1.33081133,654.07,653.53,1.14160755]
[1751276082367,1.33081133,654.06,653.53,1.14160755]
[1751276082564,1.33081133,654.05,653.53,1.14160755]
[1751276082768,1.33081133,654.04,653.53,1.14160755]
[1751276083064,1.33081133,654.03,653.53,1.14160755]
[1751276083264,1.33081133,654.02,653.53,1.14160755]
[1751276083463,1.33081133,654.01,653.48,1.14160755]
[1751276083667,1.33081133,654.0,653.48,1.14160755]
[1751276083868,1.33081133,653.99,653.48,1.14160755]
[1751276084066,1.33081133,653.98,653.48,1.14160755]
[1751276084269,1.33081133,653.97,653.48,1.14160755]
[1751276084466,1.33081133,653.96,653.48,1.14160755]
[1751276084669,1.33081133,653.95,653.48,1.14160755]
[1751276084965,1.33081133,653.94,653.48,1.14160755]
[1751276085169,1.33081133,653.93,653.48,1.14160755]
[1751276085465,1.33081133,653.92,653.48,1.14160755]
[1751276085669,1.33081133,653.91,653.48,1.14160755]
[1751276085869,1.33081133,653.9,653.48,1.14160755]
[1751276086066,1.33081133,653.89,653.48,1.14160755]
[1751276086271,1.33081133,653.88,653.48,1.14160755]
[1751276086571,1.33081133,653.87,653.48,1.14160755]
[1751276086772,1.33081133,653.86,653.48,1.14160755]
[1751276086973,1.33081133,653.85,653.48,1.14160755]
[1751276087172,1.33081133,653.84,653.49,1.14160755]
[1751276087373,1.33081133,653.83,653.49,1.14160755]
[1751276087668,1.33081133,653.82,653.49,1.14160755]
[1751276087873,1.33081133,653.81,653.48,1.14160755]
[1751276088072,1.79417002,654.19,653.44,1.14160755]
[1751276088273,1.33092526,654.18,653.44,1.14160755]
[1751276088473,1.33092526,654.17,653.44,1.14160755]
[1751276088671,1.33092526,654.16,653.44,1.14160755]
[1751276088872,1.33092526,654.15,653.44,1.14160755]
[1751276089077,1.33092526,654.14,653.44,1.14160755]
[1751276089276,1.33092526,654.13,653.44,1.14160755]
[1751276089576,1.33092526,654.12,653.44,1.14160755]
[1751276089772,1.33092526,654.11,653.44,1.14160755]
[1751276089977,1.33092526,654.1,653.44,1.14160755]
[1751276090176,1.33092526,654.09,653.44,1.14160755]
[1751276090374,1.33092526,654.08,653.44,1.14160755]
[1751276090577,1.33092526,654.07,653.44,1.14160755]
[1751276090872,1.33092526,654.06,653.44,1.14160755]
[1751276091077,1.33092526,654.05,653.44,1.14160755]
[1751276091277,1.33092526,654.04,653.44,1.14160755]
[1751276091477,1.33092526,654.03,653.43,1.14160755]
[1751276091677,1.33092526,654.02,653.43,1.14160755]
[1751276091876,1.33092526,654.01,653.43,1.14160755]
[1751276092077,0.26615272,654.19,653.43,1.14160755]
[1751276092078,1.33092526,654.0,653.43,1.14160755]
[1751276092278,1.33092526,653.99,653.43,1.14160755]
[1751276092478,1.33092526,653.98,653.43,1.14160755]
[1751276092676,1.33092526,653.97,653.43,1.14160755]
[1751276092879,1.33092526,653.96,653.43,1.14160755]
[1751276093078,1.33092526,653.95,653.43,1.14160755]
[1751276093279,1.33092526,653.94,653.44,1.14160755]
[1751276093578,1.33092526,653.93,653.44,1.14160755]
[1751276093877,1.33092526,653.92,653.44,1.14160755]
[1751276094080,1.33092526,653.91,653.44,1.14160755]
[1751276094277,1.33092526,653.9,653.44,1.14160755]
[1751276094579,1.33092526,653.89,653.44,1.14160755]
[1751276094780,1.33092526,653.88,653.44,1.14160755]
[1751276095080,1.33092526,653.87,653.44,1.14160755]
[1751276095379,1.33092526,653.86,653.44,1.14160755]
[1751276095575,1.33092526,653.85,653.44,1.14160755]
[1751276095781,1.33092526,653.84,653.44,1.14160755]
[1751276095981,1.79417002,654.19,653.44,1.14160755]
[1751276096280,1.33042531,654.18,653.44,1.14160755]
[1751276096478,1.33042531,654.17,653.44,1.14160755]
[1751276096680,1.33042531,654.16,653.44,1.14160755]
[1751276096979,1.33042531,654.15,653.44,1.14160755]
[1751276097180,1.33042531,654.14,653.44,1.14160755]
[1751276097381,1.33042531,654.13,653.44,1.14160755]
[1751276097677,1.33042531,654.12,653.44,1.14160755]
[1751276097877,1.33042531,654.11,653.44,1.14160755]
[1751276098077,1.33042531,654.1,653.47,1.14160755]
[1751276098276,1.33042531,654.09,653.47,1.14160755]
[1751276098481,1.33042531,654.08,653.47,1.14160755]
[1751276098681,1.33042531,654.07,653.47,1.14160755]
[1751276098979,1.33042531,654.06,653.47,1.14160755]
[1751276099179,1.33042531,654.05,653.47,1.14160755]
[1751276099375,1.33042531,654.04,653.48,1.14160755]
[1751276099577,1.33042531,654.03,653.48,1.14160755]
[1751276099778,1.33042531,654.02,653.48,1.14160755]
[1751276099979,1.33042531,654.01,653.48,1.14160755]
[1751276100178,1.33042531,654.0,653.48,1.14160755]
[1751276100378,1.33042531,653.99,653.48,1.14160755]
[1751276100580,1.33042531,653.98,653.48,1.14160755]
[1751276100778,1.33042531,653.97,653.48,1.14160755]
[1751276100978,1.33042531,653.96,653.49,1.14160755]
[1751276101181,1.33042531,653.95,653.49,1.14160755]
[1751276101485,1.33042531,653.94,653.49,1.14160755]
[1751276101681,1.33042531,653.93,653.49,1.14160755]
[1751276101885,1.33042531,653.92,653.49,1.14160755]
[1751276102087,1.33042531,653.91,653.52,1.14160755]
[1751276102285,1.33042531,653.9,653.52,1.14160755]
[1751276102488,1.33042531,653.89,653.52,1.14160755]
[1751276102688,1.33042531,653.88,653.53,1.14160755]
[1751276102887,1.33042531,653.87,653.53,1.14160755]
[1751276103086,1.33042531,653.86,653.53,1.14160755]
[1751276103286,1.33042531,653.85,653.53,1.14160755]
[1751276105689,1.33042737,654.03,653.54,1.14160755]
[1751276105893,1.33042737,654.02,653.5,1.14160755]
[1751276106194,1.33042737,654.01,653.5,1.14160755]
[1751276106394,1.33042737,654.0,653.5,1.14160755]
[1751276106591,1.33042737,653.99,653.5,1.14160755]
[1751276106889,1.33042737,653.98,653.5,1.14160755]
[1751276107093,1.33042737,653.97,653.5,1.14160755]
[1751276107292,1.33042737,653.96,653.5,1.14160755]
[1751276107489,1.33042737,653.95,653.5,1.14160755]
[1751276107688,1.33042737,653.94,653.5,1.14160755]
[1751276107893,1.33042737,653.93,653.5,1.14160755]
[1751276108090,1.33042737,653.92,653.48,1.14160755]
[1751276108293,1.33042737,653.91,653.48,1.14160755]
[1751276108490,1.33042737,653.9,653.48,1.14160755]
[1751276108692,1.33042737,653.89,653.48,1.14160755]
[1751276108896,1.33042737,653.88,653.49,1.14160755]
[1751276109097,1.33042737,653.87,653.49,1.14160755]
[1751276109292,1.33042737,653.86,653.49,1.14160755]
[1751276109595,1.33042737,653.85,653.49,1.14160755]
[1751276109794,1.33042737,653.84,653.5,1.14160755]
[1751276109996,1.33042737,653.83,653.5,1.14160755]
[1751276110194,1.33042737,653.82,653.5,1.14160755]
[1751276110494,1.33042737,653.81,653.5,1.14160755]
[1751276110794,1.5280173,654.12,653.5,1.14160755]
[1751276110996,1.33041789,654.11,653.5,1.14160755]
[1751276111193,1.33041789,654.1,653.5,1.14160755]
[1751276111399,1.33041789,654.09,653.5,1.14160755]
[1751276111596,1.33041789,654.08,653.5,1.14160755]
[1751276111899,1.33041789,654.07,653.5,1.14160755]
[1751276112096,1.33041789,654.06,653.48,1.14160755]
[1751276112298,1.33041789,654.05,653.48,1.14160755]
[1751276112599,1.33041789,654.04,653.48,1.14160755]
[1751276112796,1.5280173,654.14,653.48,1.14160755]
[1751276112797,1.33041789,654.03,653.48,1.14160755]
[1751276112999,1.33041789,654.02,653.48,1.14160755]
[1751276113197,1.33041789,654.01,653.48,1.14160755]
[1751276113401,1.33041789,654.0,653.48,1.14160755]
[1751276113601,1.33041789,653.99,653.48,1.14160755]
[1751276113900,1.33041789,653.98,653.48,1.14160755]
[1751276114098,1.33041789,653.97,653.48,1.14160755]
[1751276114301,1.33041789,653.96,653.48,1.14160755]
[1751276114502,1.33041789,653.95,653.48,1.14160755]
[1751276114701,1.33041789,653.94,653.48,1.14160755]
[1751276114898,1.33041789,653.93,653.48,1.14160755]
[1751276115098,1.33041789,653.92,653.48,1.14160755]
[1751276115297,1.5280173,654.14,653.48,1.14160755]
[1751276115298,1.33041789,653.91,653.48,1.14160755]
[1751276115502,1.33041789,653.9,653.48,1.14160755]
[1751276115698,1.33041789,653.89,653.49,1.14160755]
[1751276115898,1.33041789,653.88,653.49,1.14160755]
[1751276116098,1.33041789,653.87,653.49,1.14160755]
[1751276116299,1.33041789,653.86,653.49,1.14160755]
[1751276116498,1.33041789,653.85,653.49,1.14160755]
[1751276116701,1.33041789,653.84,653.49,1.14160755]
[1751276116901,1.33041789,653.83,653.49,1.14160755]
[1751276117099,1.33041789,653.82,653.49,1.14160755]
[1751276117298,1.33041789,653.81,653.49,1.14160755]
[1751276117504,1.5280173,654.14,653.49,1.14160755]
[1751276117802,1.33041796,654.13,653.49,1.14160755]
[1751276118002,1.33041796,654.12,653.49,1.14160755]
[1751276118299,1.33041796,654.11,653.49,1.14160755]
[1751276118601,1.33041796,654.1,653.49,1.14160755]
[1751276118804,1.33041796,654.09,653.49,1.14160755]
[1751276119098,1.33041796,654.08,653.49,1.14160755]
[1751276119303,1.33041796,654.07,653.49,1.14160755]
[1751276119504,1.33041796,654.06,653.49,1.14160755]
[1751276119800,1.33041796,654.05,653.49,1.14160755]
[1751276120003,1.33041796,654.04,653.49,1.14160755]
[1751276120204,1.33041796,654.03,653.49,1.14160755]
[1751276120404,1.33041796,654.02,653.49,1.14160755]
[1751276120601,1.33041796,654.01,653.49,1.14160755]
[1751276120807,1.33041796,654.0,653.49,1.14160755]
[1751276121008,1.33041796,653.99,653.49,1.14160755]
[1751276121209,1.33041796,653.98,653.49,1.14160755]
[1751276121404,1.33041796,653.97,653.49,1.14160755]
[1751276121704,1.33041796,653.96,653.49,1.14160755]
[1751276122009,1.33041796,653.95,653.5,1.14160755]
[1751276122308,1.33041796,653.94,653.5,1.14160755]
[1751276122504,1.33041796,653.93,653.51,1.14160755]
[1751276122808,1.33041796,653.92,653.51,1.14160755]
[1751276123010,1.33041796,653.91,653.49,1.14160755]
[1751276123210,1.33041796,653.9,653.49,1.14160755]
[1751276123507,1.33041796,653.89,653.48,1.14160755]
[1751276123711,1.33041796,653.88,653.48,1.14160755]
[1751276123913,1.33041796,653.87,653.48,1.14160755]
[1751276124209,1.33041796,653.86,653.48,1.14160755]
[1751276124407,1.33041796,653.85,653.48,1.14160755]
[1751276124613,1.33041796,653.84,653.49,1.14160755]
[1751276124814,1.33041796,653.83,653.49,1.14160755]
[1751276125113,1.33041796,653.82,653.49,1.14160755]
[1751276125409,1.5280173,654.13,653.49,1.14160755]
[1751276125612,1.33030012,654.12,653.49,1.14160755]
[1751276125810,1.33030012,654.11,653.49,1.14160755]
[1751276126010,1.33030012,654.1,653.49,1.14160755]
[1751276126214,1.33030012,654.09,653.49,1.14160755]
[1751276126413,1.33030012,654.08,653.49,1.14160755]
[1751276126713,1.33030012,654.07,653.48,1.14160755]
[1751276126913,1.33030012,654.06,653.48,1.14160755]
[1751276127112,1.33030012,654.05,653.48,1.14160755]
[1751276127309,1.33030012,654.04,653.48,1.14160755]
[1751276127514,1.33030012,654.03,653.49,1.14160755]
[1751276127714,1.33030012,654.02,653.49,1.14160755]
[1751276127912,1.33030012,654.01,653.49,1.14160755]
[1751276128113,1.33030012,654.0,653.49,1.14160755]
[1751276128310,1.33030012,653.99,653.49,1.14160755]
[1751276128512,1.33030012,653.98,653.49,1.14160755]
[1751276128711,1.33030012,653.97,653.49,1.14160755]
[1751276128910,1.33030012,653.96,653.49,1.14160755]
[1751276129113,1.33030012,653.95,653.49,1.14160755]
[1751276129312,1.33030012,653.94,653.49,1.14160755]
[1751276129612,1.33030012,653.93,653.49,1.14160755]
[1751276129812,1.33030012,653.92,653.49,1.14160755]
[1751276130015,1.33030012,653.91,653.49,1.14160755]
[1751276130209,1.33030012,653.9,653.49,1.14160755]
[1751276130413,1.33030012,653.89,653.49,1.14160755]
[1751276130614,1.33030012,653.88,653.49,1.14160755]
[1751276130910,1.33030012,653.87,653.49,1.14160755]
[1751276131110,1.33030012,653.86,653.49,1.14160755]
[1751276131310,1.33030012,653.85,653.49,1.14160755]
[1751276131516,1.33030012,653.84,653.49,1.14160755]
[1751276131713,1.33030012,653.83,653.49,1.14160755]
[1751276132016,1.33030012,653.82,653.49,1.14160755]
[1751276132217,1.5280173,654.14,653.49,1.14160755]
[1751276132415,1.33025234,654.13,653.49,1.14160755]
[1751276132615,1.33025234,654.12,653.49,1.14160755]
[1751276132815,1.33025234,654.11,653.49,1.14160755]
[1751276133016,1.33025234,654.1,653.5,1.14160755]
[1751276133219,1.33025234,654.09,653.5,1.14160755]
[1751276133419,1.33025234,654.08,653.5,1.14160755]
[1751276133716,1.33025234,654.07,653.5,1.14160755]
[1751276133916,1.33025234,654.06,653.5,1.14160755]
[1751276134116,1.33025234,654.05,653.5,1.14160755]
[1751276134319,1.33025234,654.04,653.5,1.14160755]
[1751276134520,1.33025234,654.03,653.5,1.14160755]
[1751276134716,1.33025234,654.02,653.5,1.14160755]
[1751276134920,1.33025234,654.01,653.5,1.14160755]
[1751276135121,1.33025234,654.0,653.5,1.14160755]
[1751276135420,1.33025234,653.99,653.5,1.14160755]
[1751276135620,1.33025234,653.98,653.51,1.14160755]
[1751276135817,1.33025234,653.97,653.51,1.14160755]
[1751276136022,1.33025234,653.96,653.51,1.14160755]
[1751276136222,1.33025234,653.95,653.51,1.14160755]
[1751276136423,1.33025234,653.94,653.51,1.14160755]
[1751276136722,1.33025234,653.94,653.35,1.78921029]
[1751276136723,1.33025234,653.93,653.53,1.14160755]
[1751276136923,1.33025234,653.92,653.53,1.14160755]
[1751276137121,1.33025234,653.91,653.53,1.14160755]
[1751276137320,1.33025234,653.9,653.53,1.14160755]
[1751276137521,1.33025234,653.89,653.53,1.14160755]
[1751276137723,1.5280173,654.09,653.35,0.26616289]
[1751276137724,1.33025234,653.88,653.54,1.14160755]
[1751276138026,1.33025234,653.87,653.54,1.14160755]
[1751276138222,1.33025234,653.86,653.54,1.14160755]
[1751276138423,1.33025234,653.85,653.54,1.14160755]
[1751276138624,1.33025234,653.84,653.54,1.14160755]
[1751276138827,1.33025234,653.83,653.54,1.14160755]
[1751276139025,1.33025234,653.82,653.54,1.14160755]
[1751276139224,1.5280173,654.17,653.46,1.14160755]
[1751276139524,1.33022964,654.16,653.46,1.14160755]
[1751276139729,1.33022964,654.15,653.46,1.14160755]
[1751276140026,1.33022964,654.14,653.45,1.14160755]
[1751276140325,1.33022964,654.13,653.45,1.14160755]
[1751276140529,1.33022964,654.12,653.45,1.14160755]
[1751276140829,1.33022964,654.11,653.45,1.14160755]
[1751276141029,1.33022964,654.11,653.35,0.26616289]
[1751276141030,1.33022964,654.1,653.44,1.14160755]
[1751276141330,1.33022964,654.09,653.44,1.14160755]
[1751276141531,1.33022964,654.08,653.44,1.14160755]
[1751276141827,1.33022964,654.07,653.44,1.14160755]
[1751276142127,1.33022964,654.06,653.44,1.14160755]
[1751276142327,1.33022964,654.05,653.44,1.14160755]
[1751276142524,1.33022964,654.04,653.44,1.14160755]
[1751276142726,1.33022964,654.03,653.44,1.14160755]
[1751276142929,1.33022964,654.02,653.43,1.14160755]
[1751276143124,1.33022964,654.01,653.43,1.14160755]
[1751276143326,1.33022964,654.0,653.43,1.14160755]
[1751276143628,1.33022964,653.99,653.43,1.14160755]
[1751276143825,1.33022964,653.98,653.43,1.14160755]
[1751276144029,1.33022964,653.97,653.43,1.14160755]
[1751276144330,1.33022964,653.96,653.43,1.14160755]
[1751276144529,1.33022964,653.95,653.43,1.14160755]
[1751276144829,1.33022964,653.94,653.43,1.14160755]
[1751276145029,1.33022964,653.93,653.43,1.14160755]
[1751276145229,1.33022964,653.92,653.43,1.14160755]
[1751276145429,1.33022964,653.91,653.43,1.14160755]
[1751276145626,1.33022964,653.9,653.43,1.14160755]
[1751276145831,1.33022964,653.89,653.43,1.14160755]
[1751276146028,1.33022964,653.88,653.42,1.14160755]
[1751276146227,1.33022964,653.87,653.42,1.14160755]
[1751276146426,1.33022964,653.86,653.42,1.14160755]
[1751276146630,0.26615272,654.19,653.42,1.14160755]
[1751276146827,1.33023106,654.18,653.42,1.14160755]
[1751276147128,1.33023106,654.17,653.42,1.14160755]
[1751276147327,1.33023106,654.16,653.42,1.14160755]
[1751276147630,1.33023106,654.15,653.42,1.14160755]
[1751276147831,1.33023106,654.14,653.42,1.14160755]
[1751276148031,1.33023106,654.13,653.42,1.14160755]
[1751276148332,1.33023106,654.12,653.42,1.14160755]
[1751276148631,1.33023106,654.11,653.41,1.14160755]
[1751276148831,1.33023106,654.1,653.41,1.14160755]
[1751276149031,1.33023106,654.09,653.41,1.14160755]
[1751276149227,1.33023106,654.08,653.42,1.14160755]
[1751276149430,1.33023106,654.07,653.42,1.14160755]
[1751276149627,1.33023106,654.06,653.42,1.14160755]
[1751276149928,0.26615272,654.19,653.43,1.14160755]
[1751276149929,1.33023106,654.05,653.43,1.14160755]
[1751276150129,1.33023106,654.04,653.43,1.14160755]
[1751276150329,1.33023106,654.03,653.43,1.14160755]
[1751276150531,1.33023106,654.02,653.43,1.14160755]
[1751276150730,1.33023106,654.01,653.43,1.14160755]
[1751276150932,1.33023106,654.0,653.44,1.14160755]
[1751276151132,1.33023106,653.99,653.44,1.14160755]
[1751276151333,1.33023106,653.98,653.44,1.14160755]
[1751276151534,1.33023106,653.97,653.44,1.14160755]
[1751276151731,1.33023106,653.96,653.44,1.14160755]
[1751276152031,1.33023106,653.95,653.44,1.14160755]
[1751276152234,1.33023106,653.94,653.44,1.14160755]
[1751276152428,1.33023106,653.93,653.44,1.14160755]
[1751276152729,1.33023106,653.92,653.45,1.14160755]
[1751276152929,1.33023106,653.91,653.45,1.14160755]
[1751276153130,1.33023106,653.9,653.45,1.14160755]
[1751276153432,1.33023106,653.89,653.45,1.14160755]
[1751276153630,1.33023106,653.88,653.45,1.14160755]
[1751276153834,1.33023106,653.87,653.45,1.14160755]
[1751276154033,1.33023106,653.86,653.45,1.14160755]
[1751276154331,1.33023106,653.85,653.45,1.14160755]
[1751276154533,1.33023106,653.84,653.45,1.14160755]
[1751276154734,0.26615272,654.19,653.45,1.14160755]
[1751276154932,1.33027038,654.18,653.45,1.14160755]
[1751276155131,1.33027038,654.17,653.45,1.14160755]
[1751276155335,1.33027038,654.16,653.45,1.14160755]
[1751276155631,1.33027038,654.15,653.45,1.14160755]
[1751276155935,1.33027038,654.14,653.46,1.14160755]
[1751276156132,1.33027038,654.13,653.46,1.14160755]
[1751276156335,1.33027038,654.12,653.46,1.14160755]
[1751276156630,1.33027038,654.11,653.46,1.14160755]
[1751276156832,1.33027038,654.1,653.46,1.14160755]
[1751276157033,1.33027038,654.09,653.46,1.14160755]
[1751276157235,1.33027038,654.08,653.47,1.14160755]
[1751276157531,1.33027038,654.07,653.47,1.14160755]
[1751276157736,1.33027038,654.06,653.48,1.14160755]
[1751276157936,1.33027038,654.05,653.48,1.14160755]
[1751276158235,1.33027038,654.04,653.48,1.14160755]
[1751276158437,1.33027038,654.03,653.48,1.14160755]
[1751276158635,1.33027038,654.02,653.49,1.14160755]
[1751276158832,1.33027038,654.01,653.5,1.14160755]
[1751276159036,1.33027038,654.0,653.5,1.14160755]
[1751276159335,1.33027038,653.99,653.5,1.14160755]
[1751276159535,1.33027038,653.98,653.5,1.14160755]
[1751276159835,1.33027038,653.97,653.5,1.14160755]
[1751276160035,1.33027038,653.96,653.5,1.14160755]
[1751276160233,1.33027038,653.95,653.49,1.14160755]
[1751276160431,1.33027038,653.94,653.49,1.14160755]
[1751276160632,1.33027038,653.93,653.49,1.14160755]
[1751276160933,1.33027038,653.92,653.5,1.14160755]
[1751276161135,1.33027038,653.91,653.5,1.14160755]
[1751276161336,1.33027038,653.9,653.51,1.14160755]
[1751276161535,1.33027038,653.89,653.52,1.14160755]
[1751276161834,1.33027038,653.88,653.44,1.14160755]
[1751276162138,1.33027038,653.87,653.44,1.14160755]
[1751276162338,1.33027038,653.86,653.44,1.14160755]
[1751276162535,1.33027038,653.85,653.44,1.14160755]
[1751276162736,1.5280173,654.21,653.44,1.14160755]
[1751276162940,1.33028271,654.2,653.44,1.14160755]
[1751276163140,1.33028271,654.19,653.44,1.14160755]
[1751276163336,1.33028271,654.18,653.44,1.14160755]
[1751276163537,1.33028271,654.17,653.44,1.14160755]
[1751276163836,1.33028271,654.16,653.44,1.14160755]
[1751276164039,1.33028271,654.15,653.44,1.14160755]
[1751276164338,1.33028271,654.14,653.44,1.14160755]
[1751276164536,1.33028271,654.13,653.44,1.14160755]
[1751276164742,1.33028271,654.12,653.44,1.14160755]
[1751276164943,1.33028271,654.11,653.44,1.14160755]
[1751276165141,1.33028271,654.1,653.44,1.14160755]
[1751276165341,1.33028271,654.09,653.44,1.14160755]
[1751276165543,1.33028271,654.08,653.44,1.14160755]
[1751276165843,1.33028271,654.07,653.44,1.14160755]
[1751276166046,1.33028271,654.06,653.44,1.14160755]
[1751276166244,1.33028271,654.05,653.44,1.14160755]
[1751276166445,1.33028271,654.04,653.44,1.14160755]
[1751276166644,1.33028271,654.03,653.44,1.14160755]
[1751276166848,1.33028271,654.02,653.43,1.14160755]
[1751276167044,1.33028271,654.01,653.43,1.14160755]
[1751276167249,1.33028271,654.0,653.43,1.14160755]
[1751276167546,1.33028271,653.99,653.43,1.14160755]
[1751276167849,1.33028271,653.98,653.42,1.14160755]
[1751276168145,1.33028271,653.97,653.51,1.14160755]
[1751276168446,0.26614457,654.28,653.5,1.14160755]
[1751276168649,1.32885979,654.27,653.5,1.14160755]
[1751276168846,0.26614457,654.28,653.5,1.14160755]
[1751276168847,1.32885979,654.26,653.5,1.14160755]
[1751276169045,1.32885979,654.25,653.5,1.14160755]
[1751276169346,1.32885979,654.24,653.5,1.14160755]
[1751276169546,1.32885979,654.23,653.5,1.14160755]
[1751276169745,1.32885979,654.22,653.5,1.14160755]
[1751276169950,1.32885979,654.21,653.5,1.14160755]
[1751276170251,1.32885979,654.2,653.49,1.14160755]
[1751276170452,1.32885979,654.19,653.49,1.14160755]
[1751276170649,1.32885979,654.18,653.49,1.14160755]
[1751276170848,1.32885979,654.17,653.49,1.14160755]
[1751276171052,1.32885979,654.16,653.49,1.14160755]
[1751276171250,1.32885979,654.15,653.49,1.14160755]
[1751276171547,1.32885979,654.14,653.49,1.14160755]
[1751276171752,1.32885979,654.13,653.52,1.14160755]
[1751276171952,1.32885979,654.12,653.52,1.14160755]
[1751276172248,1.32885979,654.12,653.35,0.26616289]
[1751276172249,1.32885979,654.11,653.51,1.14160755]
[1751276172448,1.32885979,654.1,653.51,1.14160755]
[1751276172652,1.32885979,654.09,653.51,1.14160755]
[1751276172950,1.32885979,654.08,653.51,1.14160755]
[1751276173152,1.32885979,654.07,653.51,1.14160755]
[1751276173353,1.32885979,654.06,653.51,1.14160755]
[1751276173550,1.32885979,654.05,653.51,1.14160755]
[1751276173750,1.32885979,654.04,653.51,1.14160755]
[1751276173951,1.32885979,654.03,653.51,1.14160755]
[1751276174149,1.32885979,654.02,653.5,1.14160755]
[1751276174352,1.32885979,654.01,653.5,1.14160755]
[1751276174550,1.32885979,654.0,653.5,1.14160755]
[1751276174748,1.32885979,653.99,653.51,1.14160755]
[1751276174952,1.32885979,653.98,653.51,1.14160755]
[1751276175152,1.32885979,653.97,653.52,1.14160755]
[1751276175350,0.26614457,654.28,653.52,1.14160755]
[1751276175550,1.32807552,654.27,653.52,1.14160755]
[1751276175749,1.32807552,654.26,653.52,1.14160755]
[1751276175956,1.32807552,654.25,653.52,1.14160755]
[1751276176151,1.32807552,654.24,653.52,1.14160755]
[1751276176352,1.32807552,654.23,653.51,1.14160755]
[1751276176552,1.32807552,654.22,653.51,1.14160755]
[1751276176856,1.32807552,654.21,653.52,1.14160755]
[1751276177056,1.32807552,654.2,653.52,1.14160755]
[1751276177252,1.32807552,654.19,653.52,1.14160755]
[1751276177457,1.32807552,654.18,653.53,1.14160755]